[Event "Titled Tuesday Blitz May 23 Late 2023"]
[White "Bortnyk, Olexandr"]
[Black "Chor, Kevin"]
[WhiteFideId "14120828"]
[BlackFideId "2090740"]
[WhiteElo "2734"]
[BlackElo "2625"]
[Result "1-0"]
[Round "02"]
[TimeControl "180+2"]
[Date "2023.05.23"]
[WhiteClock "0:00:05"]
[BlackClock "0:00:01"]

1. e4 {[%clk 0:02:56]}  c5 {[%clk 0:02:59]} 2. c3 {[%clk 0:02:56]}  Nf6 {[%clk 0:02:45]} 3. e5 {[%clk 0:02:55]}  Nd5 {[%clk 0:02:31]} 4. d4 {[%clk 0:02:56]}  cxd4 {[%clk 0:02:29]} 5. Nf3 {[%clk 0:02:57]}  Nc6 {[%clk 0:02:29]} 6. Bc4 {[%clk 0:02:57]}  Nb6 {[%clk 0:02:29]} 7. Bb3 {[%clk 0:02:57]}  d6 {[%clk 0:02:29]} 8. exd6 {[%clk 0:02:48]}  e6 {[%clk 0:02:22]} 9. O-O {[%clk 0:02:46]}  dxc3 {[%clk 0:02:17]} 10. Nxc3 {[%clk 0:02:46]}  Bxd6 {[%clk 0:02:17]} 11. Ng5 {[%clk 0:02:42]}  Be7 {[%clk 0:02:04]} 12. Qh5 {[%clk 0:02:39]}  Bxg5 {[%clk 0:01:43]} 13. Bxg5 {[%clk 0:02:40]}  Qd3 {[%clk 0:01:24]} 14. Rad1 {[%clk 0:02:21]}  Qg6 {[%clk 0:01:15]} 15. Qh4 {[%clk 0:02:01]}  O-O {[%clk 0:01:06]} 16. Nb5 {[%clk 0:01:52]}  Nd5 {[%clk 0:00:59]} 17. Bxd5 {[%clk 0:01:45]}  exd5 {[%clk 0:00:59]} 18. Nc7 {[%clk 0:01:46]}  Rb8 {[%clk 0:00:58]} 19. Nxd5 {[%clk 0:01:41]}  Be6 {[%clk 0:00:37]} 20. Nf4 {[%clk 0:01:37]}  Qf5 {[%clk 0:00:37]} 21. b3 {[%clk 0:01:26]}  h6 {[%clk 0:00:28]} 22. Bxh6 {[%clk 0:01:03]}  gxh6 {[%clk 0:00:25]} 23. Rd3 {[%clk 0:01:03]}  Ne5 {[%clk 0:00:20]} 24. Rg3+ {[%clk 0:00:50]}  Kh7 {[%clk 0:00:17]} 25. Rh3 {[%clk 0:00:47]}  Ng4 {[%clk 0:00:12]} 26. Nh5 {[%clk 0:00:35]}  Rg8 {[%clk 0:00:12]} 27. f3 {[%clk 0:00:31]}  Qc5+ {[%clk 0:00:11]} 28. Kh1 {[%clk 0:00:30]}  Nf2+ {[%clk 0:00:12]} 29. Qxf2 {[%clk 0:00:30]}  Qxf2 {[%clk 0:00:11]} 30. Rxf2 {[%clk 0:00:31]}  Bxh3 {[%clk 0:00:11]} 31. Nf6+ {[%clk 0:00:31]}  Kg6 {[%clk 0:00:06]} 32. Nxg8 {[%clk 0:00:32]}  Be6 {[%clk 0:00:04]} 33. Nxh6 {[%clk 0:00:26]}  Kxh6 {[%clk 0:00:05]} 34. g4 {[%clk 0:00:27]}  Rc8 {[%clk 0:00:05]} 35. Kg2 {[%clk 0:00:27]}  Kg7 {[%clk 0:00:06]} 36. Kg3 {[%clk 0:00:27]}  Kf6 {[%clk 0:00:06]} 37. h4 {[%clk 0:00:28]}  Bd7 {[%clk 0:00:07]} 38. Rd2 {[%clk 0:00:28]}  Bc6 {[%clk 0:00:08]} 39. Rd6+ {[%clk 0:00:27]}  Ke7 {[%clk 0:00:09]} 40. Rd3 {[%clk 0:00:28]}  Rg8 {[%clk 0:00:09]} 41. g5 {[%clk 0:00:26]}  f6 {[%clk 0:00:10]} 42. f4 {[%clk 0:00:25]}  fxg5 {[%clk 0:00:11]} 43. fxg5 {[%clk 0:00:25]}  Ke6 {[%clk 0:00:12]} 44. b4 {[%clk 0:00:23]}  Kf5 {[%clk 0:00:12]} 45. b5 {[%clk 0:00:24]}  Be4 {[%clk 0:00:12]} 46. Rd7 {[%clk 0:00:23]}  Rc8 {[%clk 0:00:12]} 47. Rf7+ {[%clk 0:00:24]}  Ke6 {[%clk 0:00:11]} 48. Rg7 {[%clk 0:00:20]}  Rc3+ {[%clk 0:00:10]} 49. Kf4 {[%clk 0:00:20]}  Bd5 {[%clk 0:00:08]} 50. h5 {[%clk 0:00:19]}  Rf3+ {[%clk 0:00:08]} 51. Kg4 {[%clk 0:00:20]}  Rf2 {[%clk 0:00:08]} 52. h6 {[%clk 0:00:20]}  Rg2+ {[%clk 0:00:08]} 53. Kf4 {[%clk 0:00:21]}  Rh2 {[%clk 0:00:09]} 54. h7 {[%clk 0:00:20]}  Bxa2 {[%clk 0:00:09]} 55. g6 {[%clk 0:00:17]}  Bb1 {[%clk 0:00:08]} 56. Rg8 {[%clk 0:00:14]}  Bxg6 {[%clk 0:00:07]} 57. h8=Q {[%clk 0:00:14]}  Rxh8 {[%clk 0:00:07]} 58. Rxh8 {[%clk 0:00:15]}  Bd3 {[%clk 0:00:08]} 59. Rh5 {[%clk 0:00:14]}  a6 {[%clk 0:00:08]} 60. b6 {[%clk 0:00:13]}  Kd6 {[%clk 0:00:08]} 61. Ke3 {[%clk 0:00:14]}  Bb5 {[%clk 0:00:08]} 62. Kd4 {[%clk 0:00:14]}  Bd7 {[%clk 0:00:07]} 63. Rh7 {[%clk 0:00:08]}  Kc6 {[%clk 0:00:06]} 64. Kc4 {[%clk 0:00:05]}  Be6+ {[%clk 0:00:06]} 65. Kb4 {[%clk 0:00:05]}  Bd5 {[%clk 0:00:05]} 66. Ka5 {[%clk 0:00:05]}  Kc5 {[%clk 0:00:05]} 67. Rh5 {[%clk 0:00:03]}  Kc6 {[%clk 0:00:05]} 68. Rh2 {[%clk 0:00:03]}  Kc5 {[%clk 0:00:05]} 69. Rc2+ {[%clk 0:00:03]}  Kd6 {[%clk 0:00:05]} 70. Rc7 {[%clk 0:00:03]}  Bc6 {[%clk 0:00:05]} 71. Kb4 {[%clk 0:00:04]}  Kd5 {[%clk 0:00:05]} 72. Rh7 {[%clk 0:00:04]}  Kd6 {[%clk 0:00:05]} 73. Rh6+ {[%clk 0:00:03]}  Kd7 {[%clk 0:00:05]} 74. Kc5 {[%clk 0:00:03]}  a5 {[%clk 0:00:04]} 75. Rh7+ {[%clk 0:00:03]}  Ke6 {[%clk 0:00:03]} 76. Rc7 {[%clk 0:00:03]}  Bf3 {[%clk 0:00:03]} 77. Kb5 {[%clk 0:00:03]}  a4 {[%clk 0:00:03]} 78. Kxa4 {[%clk 0:00:03]}  Kd6 {[%clk 0:00:04]} 79. Ka5 {[%clk 0:00:03]}  Bc6 {[%clk 0:00:04]} 80. Rh7 {[%clk 0:00:03]}  Kc5 {[%clk 0:00:04]} 81. Rh5+ {[%clk 0:00:04]}  Bd5 {[%clk 0:00:05]} 82. Rg5 {[%clk 0:00:03]}  Kc4 {[%clk 0:00:05]} 83. Rg7 {[%clk 0:00:03]}  Kc5 {[%clk 0:00:05]} 84. Rg1 {[%clk 0:00:03]}  Kc4 {[%clk 0:00:05]} 85. Rc1+ {[%clk 0:00:04]}  Kd4 {[%clk 0:00:06]} 86. Kb5 {[%clk 0:00:04]}  Ke5 {[%clk 0:00:06]} 87. Kc5 {[%clk 0:00:04]}  Bc6 {[%clk 0:00:06]} 88. Re1+ {[%clk 0:00:05]}  Kf6 {[%clk 0:00:06]} 89. Kd6 {[%clk 0:00:05]}  Kf5 {[%clk 0:00:06]} 90. Re7 {[%clk 0:00:04]}  Kf6 {[%clk 0:00:06]} 91. Rh7 {[%clk 0:00:05]}  Kf5 {[%clk 0:00:06]} 92. Kc7 {[%clk 0:00:04]}  Ke5 {[%clk 0:00:06]} 93. Rh5+ {[%clk 0:00:04]}  Kd4 {[%clk 0:00:06]} 94. Kb8 {[%clk 0:00:04]}  Kc4 {[%clk 0:00:06]} 95. Ka7 {[%clk 0:00:04]}  Kb4 {[%clk 0:00:06]} 96. Rh7 {[%clk 0:00:04]}  Kc5 {[%clk 0:00:01]} 97. Rxb7 {[%clk 0:00:05]} 1-0


[Site "https://www.chess.com"]

[Event "Titled Tuesday Blitz May 23 Late 2023"]
[White "Aldokhin, Ivan"]
[Black "Sarana, Alexey"]
[WhiteFideId "24115720"]
[BlackFideId "24133795"]
[WhiteElo "2322"]
[BlackElo "2714"]
[Result "0-1"]
[Round "02"]
[TimeControl "180+2"]
[Date "2023.05.23"]
[WhiteClock "0:00:00"]
[BlackClock "0:00:15"]

1. e4 {[%clk 0:03:00]}  c5 {[%clk 0:02:57]} 2. Nf3 {[%clk 0:03:01]}  d6 {[%clk 0:02:57]} 3. d4 {[%clk 0:03:01]}  cxd4 {[%clk 0:02:58]} 4. Nxd4 {[%clk 0:03:02]}  Nf6 {[%clk 0:02:58]} 5. Nc3 {[%clk 0:03:02]}  a6 {[%clk 0:02:58]} 6. Bc4 {[%clk 0:02:58]}  e6 {[%clk 0:02:57]} 7. Bb3 {[%clk 0:02:58]}  Nbd7 {[%clk 0:02:58]} 8. O-O {[%clk 0:02:53]}  Nc5 {[%clk 0:02:58]} 9. Qf3 {[%clk 0:02:49]}  Be7 {[%clk 0:02:57]} 10. Bg5 {[%clk 0:02:42]}  Qc7 {[%clk 0:02:48]} 11. Rfe1 {[%clk 0:02:29]}  O-O {[%clk 0:02:42]} 12. Qg3 {[%clk 0:02:27]}  Kh8 {[%clk 0:02:40]} 13. Qh4 {[%clk 0:02:27]}  b5 {[%clk 0:02:32]} 14. Re3 {[%clk 0:02:25]}  Ng8 {[%clk 0:02:17]} 15. Rg3 {[%clk 0:01:39]}  h6 {[%clk 0:02:05]} 16. Bxe7 {[%clk 0:01:33]}  Qxe7 {[%clk 0:02:04]} 17. Qg4 {[%clk 0:01:24]}  Qf6 {[%clk 0:02:02]} 18. Rd1 {[%clk 0:00:57]}  Ne7 {[%clk 0:01:44]} 19. Nde2 {[%clk 0:00:36]}  b4 {[%clk 0:01:37]} 20. Na4 {[%clk 0:00:34]}  Nxa4 {[%clk 0:01:21]} 21. Bxa4 {[%clk 0:00:34]}  d5 {[%clk 0:01:20]} 22. exd5 {[%clk 0:00:26]}  Nxd5 {[%clk 0:01:21]} 23. Bc6 {[%clk 0:00:19]}  Rb8 {[%clk 0:01:20]} 24. Bxd5 {[%clk 0:00:20]}  exd5 {[%clk 0:01:21]} 25. Qd4 {[%clk 0:00:20]}  Qxd4 {[%clk 0:01:15]} 26. Nxd4 {[%clk 0:00:20]}  Be6 {[%clk 0:01:16]} 27. Re3 {[%clk 0:00:20]}  Rb6 {[%clk 0:01:14]} 28. Rde1 {[%clk 0:00:21]}  Rc8 {[%clk 0:01:13]} 29. f4 {[%clk 0:00:13]}  Kg8 {[%clk 0:00:53]} 30. f5 {[%clk 0:00:05]}  Bd7 {[%clk 0:00:53]} 31. Re7 {[%clk 0:00:06]}  Rd6 {[%clk 0:00:45]} 32. b3 {[%clk 0:00:05]}  Kf8 {[%clk 0:00:44]} 33. R7e5 {[%clk 0:00:05]}  a5 {[%clk 0:00:44]} 34. Kf2 {[%clk 0:00:05]}  Rc3 {[%clk 0:00:35]} 35. R5e3 {[%clk 0:00:02]}  Rc5 {[%clk 0:00:34]} 36. g4 {[%clk 0:00:02]}  g6 {[%clk 0:00:31]} 37. Kg3 {[%clk 0:00:02]}  Kg7 {[%clk 0:00:25]} 38. h4 {[%clk 0:00:02]}  Kf6 {[%clk 0:00:24]} 39. Kf4 {[%clk 0:00:02]}  g5+ {[%clk 0:00:24]} 40. hxg5+ {[%clk 0:00:03]}  hxg5+ {[%clk 0:00:25]} 41. Kf3 {[%clk 0:00:03]}  Kg7 {[%clk 0:00:23]} 42. Ke2 {[%clk 0:00:03]}  Rh6 {[%clk 0:00:22]} 43. Kd2 {[%clk 0:00:02]}  Rh4 {[%clk 0:00:20]} 44. Rg3 {[%clk 0:00:01]}  Kf6 {[%clk 0:00:19]} 45. Re2 {[%clk 0:00:02]}  Rc8 {[%clk 0:00:19]} 46. Nf3 {[%clk 0:00:02]}  Rh1 {[%clk 0:00:18]} 47. Ne5 {[%clk 0:00:02]}  Bb5 {[%clk 0:00:17]} 48. Rf2 {[%clk 0:00:02]}  Kxe5 {[%clk 0:00:15]} 49. Re3+ {[%clk 0:00:02]}  Kf6 {[%clk 0:00:15]} 50. Rg3 {[%clk 0:00:00]}  d4 {[%clk 0:00:15]} 0-1


[Site "https://www.chess.com"]

[Event "Titled Tuesday Blitz May 23 Late 2023"]
[White "Schnaider, Ilan"]
[Black "Andreikin, Dmitry"]
[WhiteFideId "169013"]
[BlackFideId "4158814"]
[WhiteElo "2224"]
[BlackElo "2736"]
[Result "1-0"]
[Round "02"]
[TimeControl "180+2"]
[Date "2023.05.23"]
[WhiteClock "0:00:50"]
[BlackClock "0:00:55"]

1. e4 {[%clk 0:03:00]}  e6 {[%clk 0:02:56]} 2. d4 {[%clk 0:03:00]}  d5 {[%clk 0:02:57]} 3. Nd2 {[%clk 0:03:01]}  c5 {[%clk 0:02:55]} 4. Ngf3 {[%clk 0:03:01]}  cxd4 {[%clk 0:02:55]} 5. Nxd4 {[%clk 0:03:02]}  Nc6 {[%clk 0:02:54]} 6. Bb5 {[%clk 0:03:02]}  Bd7 {[%clk 0:02:54]} 7. Nxc6 {[%clk 0:03:03]}  bxc6 {[%clk 0:02:55]} 8. Bd3 {[%clk 0:03:03]}  Qc7 {[%clk 0:02:44]} 9. Qe2 {[%clk 0:03:00]}  Bd6 {[%clk 0:02:43]} 10. Nf3 {[%clk 0:03:01]}  dxe4 {[%clk 0:02:43]} 11. Bxe4 {[%clk 0:03:00]}  Nf6 {[%clk 0:02:43]} 12. Bd3 {[%clk 0:03:00]}  c5 {[%clk 0:02:42]} 13. O-O {[%clk 0:03:00]}  O-O-O {[%clk 0:02:35]} 14. Bb5 {[%clk 0:02:53]}  Bxb5 {[%clk 0:02:30]} 15. Qxb5 {[%clk 0:02:53]}  Qb7 {[%clk 0:02:31]} 16. Qc4 {[%clk 0:02:39]}  Nd5 {[%clk 0:02:25]} 17. Bg5 {[%clk 0:02:27]}  f6 {[%clk 0:02:23]} 18. Bh4 {[%clk 0:02:28]}  g5 {[%clk 0:02:10]} 19. Bg3 {[%clk 0:02:28]}  e5 {[%clk 0:02:11]} 20. Rfd1 {[%clk 0:02:26]}  Bc7 {[%clk 0:02:06]} 21. Qxc5 {[%clk 0:02:23]}  Kb8 {[%clk 0:02:07]} 22. c4 {[%clk 0:02:14]}  Nb4 {[%clk 0:02:01]} 23. Qe7 {[%clk 0:02:06]}  Qc6 {[%clk 0:01:47]} 24. Qxb4+ {[%clk 0:02:05]}  Bb6 {[%clk 0:01:47]} 25. Qe7 {[%clk 0:01:49]}  Ka8 {[%clk 0:01:43]} 26. a4 {[%clk 0:01:38]}  e4 {[%clk 0:01:36]} 27. a5 {[%clk 0:01:27]}  Rxd1+ {[%clk 0:01:16]} 28. Rxd1 {[%clk 0:01:27]}  Bc5 {[%clk 0:01:13]} 29. Rd8+ {[%clk 0:01:20]}  Rxd8 {[%clk 0:01:12]} 30. Qxd8+ {[%clk 0:01:20]}  Kb7 {[%clk 0:01:13]} 31. Qb8+ {[%clk 0:01:15]}  Ka6 {[%clk 0:01:13]} 32. b4 {[%clk 0:01:07]}  Qd7 {[%clk 0:01:01]} 33. Qb5+ {[%clk 0:00:57]}  Qxb5 {[%clk 0:01:01]} 34. cxb5+ {[%clk 0:00:58]}  Kxb5 {[%clk 0:01:01]} 35. bxc5 {[%clk 0:00:59]}  exf3 {[%clk 0:01:02]} 36. gxf3 {[%clk 0:00:59]}  Kxa5 {[%clk 0:01:01]} 37. c6 {[%clk 0:00:57]}  Kb6 {[%clk 0:01:01]} 38. c7 {[%clk 0:00:57]}  Kb7 {[%clk 0:01:01]} 39. Kf1 {[%clk 0:00:54]}  f5 {[%clk 0:00:57]} 40. Bd6 {[%clk 0:00:54]}  a5 {[%clk 0:00:55]} 41. Ke2 {[%clk 0:00:50]} 1-0


[Site "https://www.chess.com"]

[Event "Titled Tuesday Blitz May 23 Late 2023"]
[White "Denishev, Marat"]
[Black "Bortnyk, Mykola"]
[WhiteFideId "24131563"]
[BlackFideId "14120836"]
[WhiteElo "2311"]
[BlackElo "2582"]
[Result "0-1"]
[Round "02"]
[TimeControl "180+2"]
[Date "2023.05.23"]
[WhiteClock "0:00:01"]
[BlackClock "0:00:32"]

1. d4 {[%clk 0:03:00]}  Nf6 {[%clk 0:02:58]} 2. Nc3 {[%clk 0:03:00]}  d5 {[%clk 0:02:57]} 3. Bg5 {[%clk 0:03:00]}  Bf5 {[%clk 0:02:54]} 4. e3 {[%clk 0:02:58]}  e6 {[%clk 0:02:53]} 5. Bd3 {[%clk 0:02:56]}  Bg6 {[%clk 0:02:44]} 6. Nge2 {[%clk 0:02:54]}  c5 {[%clk 0:02:42]} 7. Nf4 {[%clk 0:02:53]}  Nc6 {[%clk 0:02:39]} 8. O-O {[%clk 0:02:47]}  Be7 {[%clk 0:02:21]} 9. dxc5 {[%clk 0:02:17]}  Nd7 {[%clk 0:02:09]} 10. Bxe7 {[%clk 0:02:15]}  Qxe7 {[%clk 0:02:10]} 11. e4 {[%clk 0:02:07]}  d4 {[%clk 0:02:05]} 12. Nce2 {[%clk 0:01:35]}  Nxc5 {[%clk 0:02:04]} 13. Nxg6 {[%clk 0:01:28]}  hxg6 {[%clk 0:02:04]} 14. f4 {[%clk 0:01:25]}  O-O-O {[%clk 0:01:46]} 15. b4 {[%clk 0:00:49]}  Nxb4 {[%clk 0:01:34]} 16. Rb1 {[%clk 0:00:47]}  Nxa2 {[%clk 0:01:09]} 17. Qd2 {[%clk 0:00:35]}  Kb8 {[%clk 0:00:58]} 18. Qa5 {[%clk 0:00:32]}  Nc3 {[%clk 0:00:54]} 19. Nxd4 {[%clk 0:00:19]}  Nxb1 {[%clk 0:00:39]} 20. Nb5 {[%clk 0:00:19]}  b6 {[%clk 0:00:36]} 21. Qb4 {[%clk 0:00:11]}  Rd7 {[%clk 0:00:33]} 22. Rxb1 {[%clk 0:00:10]}  Nxd3 {[%clk 0:00:32]} 23. cxd3 {[%clk 0:00:02]}  Qxb4 {[%clk 0:00:32]} 24. Rxb4 {[%clk 0:00:01]}  Rxd3 {[%clk 0:00:32]} 0-1


[Site "https://www.chess.com"]

[Event "Titled Tuesday Blitz May 23 Late 2023"]
[White "Melikyan, Gnel"]
[Black "Sjugirov, Sanan"]
[WhiteFideId "54109990"]
[BlackFideId "4189302"]
[WhiteElo "2138"]
[BlackElo "2569"]
[Result "0-1"]
[Round "02"]
[TimeControl "180+2"]
[Date "2023.05.23"]
[WhiteClock "0:00:06"]
[BlackClock "0:00:28"]

1. e4 {[%clk 0:03:00]}  c5 {[%clk 0:03:00]} 2. Nf3 {[%clk 0:02:59]}  d6 {[%clk 0:03:00]} 3. d4 {[%clk 0:02:55]}  cxd4 {[%clk 0:03:01]} 4. Nxd4 {[%clk 0:02:55]}  Nf6 {[%clk 0:03:02]} 5. Nc3 {[%clk 0:02:56]}  a6 {[%clk 0:03:02]} 6. Be3 {[%clk 0:02:55]}  e5 {[%clk 0:03:02]} 7. Nf3 {[%clk 0:02:54]}  Qc7 {[%clk 0:03:02]} 8. a4 {[%clk 0:02:53]}  Be7 {[%clk 0:03:02]} 9. Be2 {[%clk 0:02:51]}  O-O {[%clk 0:03:02]} 10. O-O {[%clk 0:02:51]}  Be6 {[%clk 0:03:01]} 11. h3 {[%clk 0:02:29]}  h6 {[%clk 0:03:01]} 12. a5 {[%clk 0:02:22]}  Qc6 {[%clk 0:02:56]} 13. Qd3 {[%clk 0:02:13]}  Nbd7 {[%clk 0:02:55]} 14. Nd2 {[%clk 0:02:04]}  Rac8 {[%clk 0:02:49]} 15. Rfd1 {[%clk 0:01:57]}  Rfd8 {[%clk 0:02:27]} 16. Nf1 {[%clk 0:01:24]}  Nc5 {[%clk 0:02:27]} 17. Bxc5 {[%clk 0:01:23]}  dxc5 {[%clk 0:02:28]} 18. Qf3 {[%clk 0:01:18]}  Rd4 {[%clk 0:02:28]} 19. Ne3 {[%clk 0:00:56]}  Nxe4 {[%clk 0:01:45]} 20. Nxe4 {[%clk 0:00:48]}  Rxe4 {[%clk 0:01:32]} 21. c3 {[%clk 0:00:41]}  c4 {[%clk 0:01:14]} 22. Nf5 {[%clk 0:00:36]}  Bxf5 {[%clk 0:01:11]} 23. Qxf5 {[%clk 0:00:33]}  Rxe2 {[%clk 0:01:11]} 24. Rd7 {[%clk 0:00:26]}  Re8 {[%clk 0:00:49]} 25. Rad1 {[%clk 0:00:22]}  g6 {[%clk 0:00:46]} 26. Qg4 {[%clk 0:00:16]}  Rxb2 {[%clk 0:00:36]} 27. Qg3 {[%clk 0:00:12]}  Bc5 {[%clk 0:00:30]} 28. Rd8 {[%clk 0:00:06]}  Bxf2+ {[%clk 0:00:28]} 0-1


[Site "https://www.chess.com"]

[Event "Titled Tuesday Blitz May 23 Late 2023"]
[White "Fishbein, Alexander"]
[Black "Ibarra Jerez, Jose Carlos"]
[WhiteFideId "2000377"]
[BlackFideId "2226332"]
[WhiteElo "2415"]
[BlackElo "2638"]
[Result "1/2-1/2"]
[Round "02"]
[TimeControl "180+2"]
[Date "2023.05.23"]
[WhiteClock "0:00:04"]
[BlackClock "0:00:04"]

1. e4 {[%clk 0:03:00]}  c5 {[%clk 0:02:59]} 2. Nf3 {[%clk 0:03:00]}  Nc6 {[%clk 0:02:59]} 3. d4 {[%clk 0:02:59]}  cxd4 {[%clk 0:02:58]} 4. Nxd4 {[%clk 0:02:59]}  e5 {[%clk 0:02:59]} 5. Nb5 {[%clk 0:02:59]}  d6 {[%clk 0:02:58]} 6. N1c3 {[%clk 0:02:57]}  a6 {[%clk 0:02:57]} 7. Na3 {[%clk 0:02:56]}  Be6 {[%clk 0:02:57]} 8. Nc4 {[%clk 0:02:56]}  Rb8 {[%clk 0:02:56]} 9. Nd5 {[%clk 0:02:52]}  Bxd5 {[%clk 0:02:35]} 10. exd5 {[%clk 0:02:48]}  Nce7 {[%clk 0:02:35]} 11. a4 {[%clk 0:02:42]}  Nf6 {[%clk 0:02:32]} 12. Be2 {[%clk 0:02:26]}  Nexd5 {[%clk 0:02:24]} 13. Bf3 {[%clk 0:02:26]}  Nb6 {[%clk 0:02:12]} 14. Nxb6 {[%clk 0:02:12]}  Qxb6 {[%clk 0:02:11]} 15. O-O {[%clk 0:02:12]}  Be7 {[%clk 0:02:11]} 16. a5 {[%clk 0:02:10]}  Qc7 {[%clk 0:02:08]} 17. Be3 {[%clk 0:02:08]}  O-O {[%clk 0:02:07]} 18. Bb6 {[%clk 0:02:08]}  Qd7 {[%clk 0:02:07]} 19. c4 {[%clk 0:02:08]}  e4 {[%clk 0:01:52]} 20. Be2 {[%clk 0:02:06]}  d5 {[%clk 0:01:53]} 21. Rc1 {[%clk 0:01:55]}  Rbc8 {[%clk 0:01:47]} 22. cxd5 {[%clk 0:01:51]}  Qxd5 {[%clk 0:01:44]} 23. Qxd5 {[%clk 0:01:33]}  Nxd5 {[%clk 0:01:42]} 24. Rfd1 {[%clk 0:01:33]}  Nxb6 {[%clk 0:01:31]} 25. axb6 {[%clk 0:01:34]}  Bc5 {[%clk 0:01:25]} 26. Bg4 {[%clk 0:01:07]}  f5 {[%clk 0:01:22]} 27. b4 {[%clk 0:01:07]}  Bxb6 {[%clk 0:00:34]} 28. Rxc8 {[%clk 0:01:06]}  Rxc8 {[%clk 0:00:33]} 29. Bxf5 {[%clk 0:01:06]}  Rf8 {[%clk 0:00:12]} 30. Bxe4 {[%clk 0:01:03]}  Bxf2+ {[%clk 0:00:12]} 31. Kh1 {[%clk 0:01:01]}  b6 {[%clk 0:00:12]} 32. g3 {[%clk 0:00:37]}  a5 {[%clk 0:00:08]} 33. bxa5 {[%clk 0:00:35]}  bxa5 {[%clk 0:00:09]} 34. Rf1 {[%clk 0:00:32]}  a4 {[%clk 0:00:04]} 35. Kg2 {[%clk 0:00:31]}  Bc5 {[%clk 0:00:04]} 36. Bd5+ {[%clk 0:00:28]}  Kh8 {[%clk 0:00:04]} 37. Rxf8+ {[%clk 0:00:28]}  Bxf8 {[%clk 0:00:05]} 38. Kf3 {[%clk 0:00:27]}  g6 {[%clk 0:00:05]} 39. h4 {[%clk 0:00:26]}  Kg7 {[%clk 0:00:05]} 40. Ba2 {[%clk 0:00:19]}  Kf6 {[%clk 0:00:05]} 41. g4 {[%clk 0:00:19]}  Ke5 {[%clk 0:00:05]} 42. Bg8 {[%clk 0:00:16]}  a3 {[%clk 0:00:04]} 43. Ke3 {[%clk 0:00:15]}  Bc5+ {[%clk 0:00:04]} 44. Kf3 {[%clk 0:00:14]}  Be7 {[%clk 0:00:04]} 45. h5 {[%clk 0:00:13]}  g5 {[%clk 0:00:04]} 46. Ke3 {[%clk 0:00:13]}  Bc5+ {[%clk 0:00:03]} 47. Kf3 {[%clk 0:00:13]}  h6 {[%clk 0:00:03]} 48. Bf7 {[%clk 0:00:11]}  Kd4 {[%clk 0:00:03]} 49. Bg8 {[%clk 0:00:11]}  Bf8 {[%clk 0:00:04]} 50. Bf7 {[%clk 0:00:10]}  Bg7 {[%clk 0:00:04]} 51. Bg8 {[%clk 0:00:10]}  Bf8 {[%clk 0:00:05]} 52. Bf7 {[%clk 0:00:10]}  Kd3 {[%clk 0:00:05]} 53. Bg8 {[%clk 0:00:10]}  Be7 {[%clk 0:00:05]} 54. Bf7 {[%clk 0:00:10]}  Bd8 {[%clk 0:00:06]} 55. Bg8 {[%clk 0:00:10]}  Bc7 {[%clk 0:00:06]} 56. Bf7 {[%clk 0:00:10]}  Bb6 {[%clk 0:00:07]} 57. Bg8 {[%clk 0:00:10]}  Bc5 {[%clk 0:00:08]} 58. Bf7 {[%clk 0:00:11]}  Bb4 {[%clk 0:00:08]} 59. Bg8 {[%clk 0:00:11]}  Bf8 {[%clk 0:00:09]} 60. Bf7 {[%clk 0:00:11]}  Kc3 {[%clk 0:00:08]} 61. Ke4 {[%clk 0:00:10]}  Kd2 {[%clk 0:00:03]} 62. Kf5 {[%clk 0:00:10]}  Ke3 {[%clk 0:00:04]} 63. Bg8 {[%clk 0:00:07]}  Kf3 {[%clk 0:00:04]} 64. Bf7 {[%clk 0:00:07]}  Kg3 {[%clk 0:00:05]} 65. Bg8 {[%clk 0:00:07]}  Be7 {[%clk 0:00:05]} 66. Bf7 {[%clk 0:00:08]}  Bd6 {[%clk 0:00:05]} 67. Bg8 {[%clk 0:00:08]}  Bb4 {[%clk 0:00:06]} 68. Be6 {[%clk 0:00:08]}  Bc3 {[%clk 0:00:06]} 69. Bf7 {[%clk 0:00:08]}  Bb4 {[%clk 0:00:06]} 70. Be6 {[%clk 0:00:08]}  Bf8 {[%clk 0:00:06]} 71. Bf7 {[%clk 0:00:08]}  Kf3 {[%clk 0:00:07]} 72. Be6 {[%clk 0:00:08]}  Ke3 {[%clk 0:00:07]} 73. Bg8 {[%clk 0:00:07]}  Kd4 {[%clk 0:00:07]} 74. Bf7 {[%clk 0:00:05]}  Kd3 {[%clk 0:00:05]} 75. Bg8 {[%clk 0:00:05]}  Kd4 {[%clk 0:00:05]} 76. Be6 {[%clk 0:00:05]}  Kc5 {[%clk 0:00:05]} 77. Bg8 {[%clk 0:00:04]}  Kd6 {[%clk 0:00:06]} 78. Bf7 {[%clk 0:00:04]}  Ke7 {[%clk 0:00:06]} 79. Ba2 {[%clk 0:00:05]}  Bg7 {[%clk 0:00:06]} 80. Bb3 {[%clk 0:00:05]}  Bc3 {[%clk 0:00:06]} 81. Kg6 {[%clk 0:00:05]}  Be5 {[%clk 0:00:04]} 82. Kxh6 {[%clk 0:00:05]}  Kf6 {[%clk 0:00:05]} 83. Kh7 {[%clk 0:00:05]}  Ke7 {[%clk 0:00:03]} 84. Kg6 {[%clk 0:00:05]}  Bf6 {[%clk 0:00:02]} 85. h6 {[%clk 0:00:05]}  Bh8 {[%clk 0:00:03]} 86. Kxg5 {[%clk 0:00:06]}  Kf8 {[%clk 0:00:03]} 87. Kg6 {[%clk 0:00:06]}  Bc3 {[%clk 0:00:03]} 88. g5 {[%clk 0:00:06]}  Bd2 {[%clk 0:00:03]} 89. Kh5 {[%clk 0:00:06]}  Be3 {[%clk 0:00:03]} 90. Kg4 {[%clk 0:00:06]}  Bd2 {[%clk 0:00:03]} 91. Kf5 {[%clk 0:00:07]}  Bc1 {[%clk 0:00:04]} 92. Kg6 {[%clk 0:00:07]}  Bd2 {[%clk 0:00:04]} 93. Kf6 {[%clk 0:00:07]}  Bc1 {[%clk 0:00:04]} 94. Kg6 {[%clk 0:00:04]}  Bd2 {[%clk 0:00:04]} 1/2-1/2


[Site "https://www.chess.com"]